fUST/lending_fUST_20250715
["ID","MTS","AMOUNT","RATE_DAILY","PERIOD"]
[372281430,1752573060448,-216.94396209,0.00020821,2]
[372281431,1752573060461,-460.0,0.00020821,2]
[372281432,1752573060474,-500.0,0.00020822,2]
[372281433,1752573060487,-152.25534,0.00020831,2]
[372281434,1752573060500,-151.0,0.00020831,2]
[372281435,1752573060513,-8775.8004887,0.00020831,4]
[372281436,1752573060526,-1500.0,0.00020834,2]
[372281437,1752573060538,-500.0,0.00020865,2]
[372281438,1752573060551,-723.999,0.00020921,2]
[372281439,1752573060564,-178.195,0.00020921,2]
[372281440,1752573060577,-157.665771,0.00020951,2]
[372281441,1752573060590,-500.0,0.00020956,2]
[372281442,1752573060603,-8775.8004887,0.00021072,4]
[372281443,1752573060616,-500.0,0.00021073,2]
[372281444,1752573060628,-151.0,0.00021085,2]
[372281445,1752573060645,-25000.0,0.00021085,2]
[372281446,1752573060661,-460.0,0.00021095,2]
[372281447,1752573060674,-460.0,0.00021095,2]
[372281448,1752573060687,-460.0,0.00021095,2]
[372281449,1752573060700,-460.0,0.00021095,2]
[372281450,1752573060713,-460.0,0.00021095,2]
[372281451,1752573060727,-460.0,0.00021095,2]
[372281452,1752573060740,-460.0,0.00021095,2]
[372281453,1752573060750,-460.0,0.00021095,2]
[372281454,1752573060759,-460.0,0.00021095,2]
[372281455,1752573060770,-460.0,0.00021095,2]
[372281456,1752573060780,-460.0,0.00021095,2]
[372281457,1752573060789,-156.83496223,0.00021095,2]
[372281458,1752573060798,-320.66908014,0.00021095,2]
[372281459,1752573060808,-460.0,0.00021095,2]
[372281460,1752573060818,-460.0,0.00021095,2]
[372281461,1752573060827,-601.75,0.00021095,2]
[372281462,1752573060838,-744.58,0.00021095,2]
[372281463,1752573060848,-527.71,0.00021095,2]
[372281464,1752573060858,-460.0,0.00021095,2]
[372281465,1752573060868,-460.0,0.00021095,2]
[372281466,1752573060878,-573.91,0.00021095,2]
[372281467,1752573060887,-460.0,0.00021095,2]
[372281468,1752573060897,-460.0,0.00021095,2]
[372281469,1752573060906,-460.0,0.00021095,2]
[372281470,1752573060916,-330.68003145,0.00021095,2]
[372281471,1752573060925,-460.0,0.00021095,2]
[372281472,1752573060935,-848.99,0.00021095,2]
[372281473,1752573060944,-599.45,0.00021095,2]
[372281474,1752573060954,-425.48832527,0.00021095,2]
[372281475,1752573060963,-460.0,0.00021095,2]
[372281476,1752573060973,-460.0,0.00021095,2]
[372281477,1752573060983,-460.0,0.00021095,2]
[372281478,1752573060992,-956.77,0.00021095,2]
[372281479,1752573061001,-964.5,0.00021095,2]
[372281480,1752573061011,-460.0,0.00021095,2]
[372281481,1752573061021,-441.14699189,0.00021095,2]
[372281482,1752573061030,-460.0,0.00021095,2]
[372281483,1752573061281,-460.0,0.00021095,2]
[372281484,1752573061299,-886.03,0.00021095,2]
[372281485,1752573061309,-460.0,0.00021095,2]
[372281486,1752573061318,-460.0,0.00021095,2]
[372281487,1752573061328,-460.0,0.00021095,2]
[372281488,1752573061338,-460.0,0.00021095,2]
[372281489,1752573061348,-537.00062229,0.00021095,2]
[372281490,1752573061358,-475.11,0.00021095,2]
[372281491,1752573061367,-521.09,0.00021095,2]
[372281492,1752573061378,-460.0,0.00021095,2]
[372281493,1752573061388,-460.0,0.00021095,2]
[372281494,1752573061397,-460.0,0.00021095,2]
[372281495,1752573061407,-460.0,0.00021095,2]
[372281496,1752573061417,-460.0,0.00021095,2]
[372281497,1752573061427,-460.0,0.00021095,2]
[372281498,1752573061436,-460.0,0.00021095,2]
[372281499,1752573061446,-460.0,0.00021095,2]
[372281500,1752573061455,-460.0,0.00021095,2]
[372281501,1752573061465,-857.74,0.00021095,2]
[372281502,1752573061475,-529.98,0.00021095,2]
[372281503,1752573061485,-460.0,0.00021095,2]
[372281504,1752573061494,-1898.17,0.00021095,2]
[372281505,1752573061504,-460.0,0.00021095,2]
[372281506,1752573061513,-460.0,0.00021095,2]
[372281507,1752573061525,-460.0,0.00021095,2]
[372281508,1752573061536,-778.98,0.00021095,2]
[372281509,1752573061545,-460.0,0.00021095,2]
[372281510,1752573061555,-460.0,0.00021095,2]
[372281511,1752573061564,-460.0,0.00021095,2]
[372281512,1752573061574,-564.23,0.00021095,2]
[372281513,1752573061584,-460.0,0.00021095,2]
[372281514,1752573061594,-677.19,0.00021095,2]
[372281515,1752573061604,-460.0,0.00021095,2]
[372281516,1752573061614,-1235.82,0.00021095,2]
[372281517,1752573061624,-460.0,0.00021095,2]
[372281518,1752573061634,-4430.53,0.00021095,2]
[372281519,1752573061655,-2432.42,0.00021095,2]
[372281520,1752573061665,-460.0,0.00021095,2]
[372281521,1752573061675,-827.1,0.00021095,2]
[372281522,1752573061684,-460.0,0.00021095,2]
[372281523,1752573061694,-5625.07,0.00021095,2]
[372281524,1752573061703,-926.97,0.00021095,2]
[372281525,1752573061713,-460.0,0.00021095,2]
[372281526,1752573061722,-460.0,0.00021095,2]
[372281527,1752573061732,-460.0,0.00021095,2]
[372281528,1752573061744,-495.78,0.00021095,2]
[372281529,1752573061753,-6188.2,0.00021095,2]
[372281530,1752573061764,-460.0,0.00021095,2]
[372281531,1752573061775,-460.0,0.00021095,2]
[372281532,1752573061784,-460.0,0.00021095,2]
[372281533,1752573061795,-460.0,0.00021095,2]
[372281534,1752573061804,-648.63,0.00021095,2]
[372281535,1752573061815,-460.0,0.00021095,2]
[372281536,1752573061826,-460.0,0.00021095,2]
[372281537,1752573061836,-698.92,0.00021095,2]
[372281538,1752573061846,-460.0,0.00021095,2]
[372281539,1752573061858,-460.0,0.00021095,2]
[372281540,1752573061870,-460.0,0.00021095,2]
[372281541,1752573061881,-460.0,0.00021095,2]
[372281542,1752573061891,-460.0,0.00021095,2]
[372281543,1752573061902,-460.0,0.00021095,2]
[372281544,1752573061912,-2087.21,0.00021095,2]
[372281545,1752573061922,-5851.82,0.00021095,2]
[372281546,1752573061932,-1650.28,0.00021095,2]
[372281547,1752573061942,-460.0,0.00021095,2]
[372281548,1752573061953,-745.92,0.00021095,2]
[372281549,1752573061963,-3475.71,0.00021095,2]
[372281550,1752573061973,-460.0,0.00021095,2]
[372281551,1752573061983,-460.0,0.00021095,2]
[372281552,1752573061992,-635.35,0.00021095,2]
[372281553,1752573062001,-1068.81,0.00021095,2]
[372281554,1752573062012,-460.0,0.00021095,2]
[372281555,1752573062024,-479.38,0.00021095,2]
[372281556,1752573062033,-460.0,0.00021095,2]
[372281557,1752573062043,-460.0,0.00021095,2]
[372281558,1752573062053,-601.48,0.00021095,2]
[372281559,1752573062062,-460.0,0.00021095,2]
[372281560,1752573062072,-2175.23,0.00021095,2]
[372281561,1752573062081,-514.62,0.00021095,2]
[372281562,1752573062091,-1333.2,0.00021095,2]
[372281563,1752573062100,-570.97,0.00021095,2]
[372281564,1752573062110,-914.1,0.00021095,2]
[372281565,1752573062120,-1305.81,0.00021095,2]
[372281566,1752573062130,-2433.37,0.00021095,2]
[372281567,1752573062139,-692.9,0.00021095,2]
[372281568,1752573062149,-460.0,0.00021095,2]
[372281569,1752573062159,-640.61,0.00021095,2]
[372281570,1752573062169,-460.0,0.00021095,2]
[372281571,1752573062179,-460.0,0.00021095,2]
[372281572,1752573062188,-711.16,0.00021095,2]
[372281573,1752573062198,-460.0,0.00021095,2]
[372281574,1752573062207,-460.0,0.00021095,2]
[372281575,1752573062217,-460.0,0.00021095,2]
[372281576,1752573062227,-460.0,0.00021095,2]
[372281577,1752573062236,-830.36,0.00021095,2]
[372281578,1752573062245,-484.83126635,0.00021095,2]
[372281579,1752573062254,-460.0,0.00021095,2]
[372281580,1752573062264,-460.0,0.00021095,2]
[372281581,1752573062275,-7653.71,0.00021095,2]
[372281582,1752573062285,-1998.15,0.00021095,2]
[372281583,1752573062294,-1596.83,0.00021095,2]
[372281584,1752573062304,-460.0,0.00021095,2]
[372281585,1752573062314,-500.0,0.00021096,2]
[372281586,1752573062323,-360.0,0.00021103,2]
[372281587,1752573062333,-2000.0,0.00021116,2]
[372281588,1752573062343,-2000.0,0.00021116,2]
[372281589,1752573062353,-504.32043466,0.00021121,2]
[372281590,1752573062362,-500.0,0.00021134,2]
[372281591,1752573062372,-3000.0,0.00021312,2]
[372281592,1752573062381,-8775.8004887,0.00021314,5]
[372281593,1752573062392,-2500.0,0.00021364,2]
[372281594,1752573062401,-328.24069586,0.00021369,2]
[372281595,1752573062411,-460.0,0.00021369,2]
[372281596,1752573062420,-151.0,0.00021369,2]
[372281597,1752573062430,-151.0,0.00021369,2]
[372281598,1752573062440,-158.1622815,0.00021369,2]
[372281599,1752573062450,-460.0,0.00021369,2]
[372281600,1752573062459,-460.0,0.00021369,2]
[372281601,1752573062470,-460.0,0.00021369,2]
[372281602,1752573062479,-460.0,0.00021369,2]
[372281603,1752573062490,-460.0,0.00021369,2]
[372281604,1752573062500,-460.0,0.00021369,2]
[372281605,1752573062510,-460.0,0.00021369,2]
[372281606,1752573062520,-460.0,0.00021369,2]
[372281607,1752573062530,-460.0,0.00021369,2]
[372281608,1752573062539,-481.24664277,0.00021369,2]
[372281609,1752573062549,-151.0,0.00021369,2]
[372281610,1752573062559,-460.0,0.00021369,2]
[372281611,1752573062569,-601.75,0.00021369,2]
[372281612,1752573062578,-744.58,0.00021369,2]
[372281613,1752573062588,-527.71,0.00021369,2]
[372281614,1752573062598,-460.0,0.00021369,2]
[372281615,1752573062607,-460.0,0.00021369,2]
[372281616,1752573062616,-573.91,0.00021369,2]
[372281617,1752573062626,-460.0,0.00021369,2]
[372281618,1752573062637,-460.0,0.00021369,2]
[372281619,1752573062649,-460.0,0.00021369,2]
[372281620,1752573062658,-151.0,0.00021369,2]
[372281621,1752573062668,-460.0,0.00021369,2]
[372281622,1752573062677,-848.99,0.00021369,2]
[372281623,1752573062687,-599.45,0.00021369,2]
[372281624,1752573062698,-460.0,0.00021369,2]
[372281625,1752573062708,-956.77,0.00021369,2]
[372281626,1752573062723,-964.5,0.00021369,2]
[372281627,1752573062738,-460.0,0.00021369,2]
[372281628,1752573062748,-460.0,0.00021369,2]
[372281629,1752573062758,-460.0,0.00021369,2]
[372281630,1752573062769,-886.03,0.00021369,2]
[372281631,1752573062779,-460.0,0.00021369,2]
[372281632,1752573062790,-460.0,0.00021369,2]
[372281633,1752573062800,-555.21943244,0.00021369,2]
[372281634,1752573062810,-316.857124,0.00021369,2]
[372281635,1752573062819,-192.40003544,0.00021369,2]
[372281636,1752573062828,-316.857124,0.00021369,2]
[372281637,1752573062838,-475.11,0.00021369,2]
[372281638,1752573062847,-521.09,0.00021369,2]
[372281639,1752573062857,-460.0,0.00021369,2]
[372281640,1752573062867,-460.0,0.00021369,2]
[372281641,1752573062876,-460.0,0.00021369,2]
[372281642,1752573062886,-460.0,0.00021369,2]
[372281643,1752573062895,-151.0,0.00021369,2]
[372281644,1752573062905,-460.0,0.00021369,2]
[372281645,1752573062915,-460.0,0.00021369,2]
[372281646,1752573062924,-460.0,0.00021369,2]
[372281647,1752573062934,-151.0,0.00021369,2]
[372281648,1752573062943,-195.76260256,0.00021369,2]
[372281649,1752573062953,-151.0,0.00021369,2]
[372281650,1752573062963,-460.0,0.00021369,2]
[372281651,1752573062973,-857.74,0.00021369,2]
[372281652,1752573062982,-529.98,0.00021369,2]
[372281653,1752573062992,-460.0,0.00021369,2]
[372281654,1752573063002,-1898.17,0.00021369,2]
[372281655,1752573063012,-460.0,0.00021369,2]
[372281656,1752573063023,-460.0,0.00021369,2]
[372281657,1752573063033,-460.0,0.00021369,2]
[372281658,1752573063055,-778.98,0.00021369,2]
[372281659,1752573063066,-460.0,0.00021369,2]
[372281660,1752573063077,-460.0,0.00021369,2]
[372281661,1752573063087,-460.0,0.00021369,2]
[372281662,1752573063098,-564.23,0.00021369,2]
[372281663,1752573063110,-460.0,0.00021369,2]
[372281664,1752573063122,-677.19,0.00021369,2]
[372281665,1752573063133,-460.0,0.00021369,2]
[372281666,1752573063145,-1235.82,0.00021369,2]
[372281667,1752573063158,-460.0,0.00021369,2]
[372281668,1752573063172,-151.0,0.00021369,2]
[372281669,1752573063182,-4430.53,0.00021369,2]
[372281670,1752573063193,-151.0,0.00021369,2]
[372281671,1752573063203,-2432.42,0.00021369,2]
[372281672,1752573063214,-460.0,0.00021369,2]
[372281673,1752573063225,-827.1,0.00021369,2]
[372281674,1752573063236,-460.0,0.00021369,2]
[372281675,1752573063246,-5625.07,0.00021369,2]
[372281676,1752573063257,-926.97,0.00021369,2]
[372281677,1752573063266,-460.0,0.00021369,2]
[372281678,1752573063277,-460.0,0.00021369,2]
[372281679,1752573063288,-460.0,0.00021369,2]
[372281680,1752573063298,-6188.2,0.00021369,2]
[372281681,1752573063308,-460.0,0.00021369,2]
[372281682,1752573063319,-460.0,0.00021369,2]
[372281683,1752573063329,-460.0,0.00021369,2]
[372281684,1752573063339,-460.0,0.00021369,2]
[372281685,1752573063350,-648.63,0.00021369,2]
[372281686,1752573063360,-460.0,0.00021369,2]
[372281687,1752573063370,-698.92,0.00021369,2]
[372281688,1752573063379,-460.0,0.00021369,2]
[372281689,1752573063389,-460.0,0.00021369,2]
[372281690,1752573063399,-460.0,0.00021369,2]
[372281691,1752573063410,-460.0,0.00021369,2]
[372281692,1752573063420,-460.0,0.00021369,2]
[372281693,1752573063430,-460.0,0.00021369,2]
[372281694,1752573063440,-5851.82,0.00021369,2]
[372281695,1752573063451,-2087.21,0.00021369,2]
[372281696,1752573063460,-1650.28,0.00021369,2]
[372281697,1752573063470,-460.0,0.00021369,2]
[372281698,1752573063480,-745.92,0.00021369,2]
[372281699,1752573063490,-3475.71,0.00021369,2]
[372281700,1752573063500,-460.0,0.00021369,2]
[372281701,1752573063510,-460.0,0.00021369,2]
[372281702,1752573063522,-635.35,0.00021369,2]
[372281703,1752573063532,-1068.81,0.00021369,2]
[372281704,1752573063542,-460.0,0.00021369,2]
[372281705,1752573063552,-479.38,0.00021369,2]
[372281706,1752573063562,-460.0,0.00021369,2]
[372281707,1752573063571,-460.0,0.00021369,2]
[372281708,1752573063581,-601.48,0.00021369,2]
[372281709,1752573063590,-460.0,0.00021369,2]
[372281710,1752573063599,-2175.23,0.00021369,2]
[372281711,1752573063607,-514.62,0.00021369,2]
[372281712,1752573063617,-1333.2,0.00021369,2]
[372281713,1752573063626,-570.97,0.00021369,2]
[372281714,1752573063636,-914.1,0.00021369,2]
[372281715,1752573063649,-291.301266,0.00021369,2]
[372281716,1752573063659,-1305.81,0.00021369,2]
[372281717,1752573063673,-2433.37,0.00021369,2]
[372281718,1752573063683,-291.301266,0.00021369,2]
[372281719,1752573063693,-692.9,0.00021369,2]
[372281720,1752573063703,-460.0,0.00021369,2]
[372281721,1752573063714,-640.61,0.00021369,2]
[372281722,1752573063725,-460.0,0.00021369,2]
[372281723,1752573063736,-460.0,0.00021369,2]
[372281724,1752573063746,-711.16,0.00021369,2]
[372281725,1752573063757,-460.0,0.00021369,2]
[372281726,1752573063767,-151.0,0.00021369,2]
[372281727,1752573063778,-460.0,0.00021369,2]
[372281728,1752573063788,-460.0,0.00021369,2]
[372281729,1752573063798,-460.0,0.00021369,2]
[372281730,1752573063808,-830.36,0.00021369,2]
[372281731,1752573063819,-460.0,0.00021369,2]
[372281732,1752573063830,-7653.71,0.00021369,2]
[372281733,1752573063840,-460.0,0.00021369,2]
[372281734,1752573063850,-1998.15,0.00021369,2]
[372281735,1752573063859,-1596.83,0.00021369,2]
[372281736,1752573063869,-460.0,0.00021369,2]
[372281737,1752573063879,-500.0,0.0002137,2]
[372281738,1752573063889,-2000.0,0.00021382,2]
[372281739,1752573063899,-907.32026196,0.00021457,2]
[372281740,1752573063909,-522.10421559,0.00021504,2]
[372281741,1752573063919,-500.0,0.00021544,2]
[372281742,1752573063929,-8775.8004887,0.00021555,5]
[372281743,1752573063939,-1000.0,0.00021621,2]
[372281744,1752573063949,-151.0,0.00021633,2]
[372281745,1752573063959,-25000.0,0.00021633,2]
[372281746,1752573063969,-228.54568651,0.00021643,2]
[372281747,1752573063979,-460.0,0.00021643,2]
[372281748,1752573063989,-460.0,0.00021643,2]
[372281749,1752573063999,-460.0,0.00021643,2]
[372281750,1752573064009,-460.0,0.00021643,2]
[372281751,1752573064019,-460.0,0.00021643,2]
[372281752,1752573064029,-460.0,0.00021643,2]
[372281753,1752573064040,-460.0,0.00021643,2]
[372281754,1752573064050,-460.0,0.00021643,2]
[372281755,1752573064060,-460.0,0.00021643,2]
[372281756,1752573064070,-460.0,0.00021643,2]
[372281757,1752573064080,-601.75,0.00021643,2]
[372281758,1752573064090,-744.58,0.00021643,2]
[372281759,1752573064100,-527.71,0.00021643,2]
[372281760,1752573064112,-460.0,0.00021643,2]
[372281761,1752573064122,-460.0,0.00021643,2]
[372281762,1752573064133,-573.91,0.00021643,2]
[372281763,1752573064142,-460.0,0.00021643,2]
[372281764,1752573064152,-555.52314097,0.00021643,2]
[372281765,1752573064162,-460.0,0.00021643,2]
[372281766,1752573064172,-460.0,0.00021643,2]
[372281767,1752573064183,-848.99,0.00021643,2]
[372281768,1752573064194,-599.45,0.00021643,2]
[372281769,1752573064204,-460.0,0.00021643,2]
[372281770,1752573064214,-956.77,0.00021643,2]
[372281771,1752573064224,-964.5,0.00021643,2]
[372281772,1752573064234,-460.0,0.00021643,2]
[372281773,1752573064244,-460.0,0.00021643,2]
[372281774,1752573064255,-460.0,0.00021643,2]
[372281775,1752573064265,-886.03,0.00021643,2]
[372281776,1752573064276,-460.0,0.00021643,2]
[372281777,1752573064286,-460.0,0.00021643,2]
[372281778,1752573064296,-475.11,0.00021643,2]
[372281779,1752573064306,-521.09,0.00021643,2]
[372281780,1752573064316,-460.0,0.00021643,2]
[372281781,1752573064326,-460.0,0.00021643,2]
[372281782,1752573064336,-460.0,0.00021643,2]
[372281783,1752573064346,-460.0,0.00021643,2]
[372281784,1752573064356,-460.0,0.00021643,2]
[372281785,1752573064366,-460.0,0.00021643,2]
[372281786,1752573064376,-460.0,0.00021643,2]
[372281787,1752573064386,-460.0,0.00021643,2]
[372281788,1752573064396,-857.74,0.00021643,2]
[372281789,1752573064406,-529.98,0.00021643,2]
[372281790,1752573064416,-460.0,0.00021643,2]
[372281791,1752573064426,-1898.17,0.00021643,2]
[372281792,1752573064435,-460.0,0.00021643,2]
[372281793,1752573064446,-460.0,0.00021643,2]
[372281794,1752573064456,-460.0,0.00021643,2]
[372281795,1752573064466,-778.98,0.00021643,2]
[372281796,1752573064477,-460.0,0.00021643,2]
[372281797,1752573064487,-460.0,0.00021643,2]
[372281798,1752573064497,-151.0,0.00021643,2]
[372281799,1752573064506,-460.0,0.00021643,2]
[372281800,1752573064517,-564.23,0.00021643,2]
[372281801,1752573064527,-460.0,0.00021643,2]
[372281802,1752573064536,-677.19,0.00021643,2]
[372281803,1752573064546,-460.0,0.00021643,2]
[372281804,1752573064557,-1235.82,0.00021643,2]
[372281805,1752573064567,-460.0,0.00021643,2]
[372281806,1752573064577,-4430.53,0.00021643,2]
[372281807,1752573064588,-2432.42,0.00021643,2]
[372281808,1752573064598,-460.0,0.00021643,2]
[372281809,1752573064772,-827.1,0.00021643,2]
[372281810,1752573064783,-460.0,0.00021643,2]
[372281811,1752573064793,-5625.07,0.00021643,2]
[372281812,1752573064803,-926.97,0.00021643,2]
[372281813,1752573064814,-460.0,0.00021643,2]
[372281814,1752573064826,-151.0,0.00021643,2]
[372281815,1752573064836,-460.0,0.00021643,2]
[372281816,1752573064846,-460.0,0.00021643,2]
[372281817,1752573064856,-248.946611,0.00021643,2]
[372281818,1752573064866,-6188.2,0.00021643,2]
[372281819,1752573064876,-469.10647165,0.00021643,2]
[372281820,1752573064886,-460.0,0.00021643,2]
[372281821,1752573064896,-460.0,0.00021643,2]
[372281822,1752573064906,-460.0,0.00021643,2]
[372281823,1752573064916,-648.63,0.00021643,2]
[372281824,1752573064927,-460.0,0.00021643,2]
[372281825,1752573064936,-698.92,0.00021643,2]
[372281826,1752573064946,-460.0,0.00021643,2]
[372281827,1752573064957,-460.0,0.00021643,2]
[372281828,1752573064967,-460.0,0.00021643,2]
[372281829,1752573064977,-460.0,0.00021643,2]
[372281830,1752573064988,-460.0,0.00021643,2]
[372281831,1752573064998,-460.0,0.00021643,2]
[372281832,1752573065007,-5851.82,0.00021643,2]
[372281833,1752573065018,-2087.21,0.00021643,2]
[372281834,1752573065028,-1650.28,0.00021643,2]
[372281835,1752573065037,-401.89557212,0.00021643,2]
[372281836,1752573065047,-745.92,0.00021643,2]
[372281837,1752573065057,-3475.71,0.00021643,2]
[372281838,1752573065066,-460.0,0.00021643,2]
[372281839,1752573065075,-460.0,0.00021643,2]
[372281840,1752573065085,-635.35,0.00021643,2]
[372281841,1752573065095,-1068.81,0.00021643,2]
[372281842,1752573065105,-460.0,0.00021643,2]
[372281843,1752573065115,-479.38,0.00021643,2]
[372281844,1752573065125,-460.0,0.00021643,2]
[372281845,1752573065134,-333.35421646,0.00021643,2]
[372281846,1752573065144,-601.48,0.00021643,2]
[372281847,1752573065154,-460.0,0.00021643,2]
[372281848,1752573065164,-2175.23,0.00021643,2]
[372281849,1752573065173,-514.62,0.00021643,2]
[372281850,1752573065183,-1333.2,0.00021643,2]
[372281851,1752573065193,-570.97,0.00021643,2]
[372281852,1752573065202,-914.1,0.00021643,2]
[372281853,1752573065212,-1305.81,0.00021643,2]
[372281854,1752573065222,-2433.37,0.00021643,2]
[372281855,1752573065234,-692.9,0.00021643,2]
[372281856,1752573065244,-460.0,0.00021643,2]
[372281857,1752573065254,-640.61,0.00021643,2]
[372281858,1752573065264,-460.0,0.00021643,2]
[372281859,1752573065274,-460.0,0.00021643,2]
[372281860,1752573065284,-711.16,0.00021643,2]
[372281861,1752573065294,-460.0,0.00021643,2]
[372281862,1752573065304,-151.0,0.00021643,2]
[372281863,1752573065314,-151.0,0.00021643,2]
[372281864,1752573065325,-460.0,0.00021643,2]
[372281865,1752573065335,-460.0,0.00021643,2]
[372281866,1752573065345,-460.0,0.00021643,2]
[372281867,1752573065355,-830.36,0.00021643,2]
[372281868,1752573065365,-7653.71,0.00021643,2]
[372281869,1752573065374,-460.0,0.00021643,2]
[372281870,1752573065385,-1998.15,0.00021643,2]
[372281871,1752573065395,-1596.83,0.00021643,2]
[372281872,1752573065406,-460.0,0.00021643,2]
[372281873,1752573065416,-500.0,0.00021644,2]
[372281874,1752573065426,-460.0,0.00021651,2]
[372281875,1752573065436,-500.02726853,0.00021664,2]
[372281876,1752573065447,-811.61810555,0.00021664,2]
[372281877,1752573065458,-2000.0,0.00021689,3]
[372281878,1752573065468,-35334.54,0.000217,2]
[372281879,1752573065478,-151.0,0.000217,2]
[372281880,1752573065487,-151.0,0.000217,2]
[372281881,1752573065497,-157.6,0.00021717,2]
[372281882,1752573065507,-1000.0,0.00021727,3]
[372281883,1752573065516,-2000.0,0.00021787,3]
[372281884,1752573065527,-8775.8004887,0.00021797,6]
[372281885,1752573065537,-3250.65755656,0.00021798,2]
[372281886,1752573065547,-5627.0,0.000218,2]
[372281887,1752573065558,-2000.0,0.00021841,3]
[372281888,1752573065568,-1361.50602488,0.0002186,2]
[372281889,1752573065579,-3000.0,0.00021863,3]
[372281890,1752573065589,-270.337652,0.00021863,2]
[372281891,1752573065598,-270.337652,0.00021863,2]
[372281892,1752573065609,-2700.43,0.000219,2]
[372281893,1752573065619,-215.0738,0.00021906,2]
[372281894,1752573065629,-500.0,0.00021908,2]
[372281895,1752573065641,-3000.0,0.00021912,2]
[372281896,1752573065651,-460.0,0.00021917,2]
[372281897,1752573065661,-460.0,0.00021917,2]
[372281898,1752573065671,-460.0,0.00021917,2]
[372281899,1752573065681,-586.45707663,0.00021917,2]
[372281900,1752573065691,-460.0,0.00021917,2]
[372281901,1752573065701,-460.0,0.00021917,2]
[372281902,1752573065711,-460.0,0.00021917,2]
[372281903,1752573065722,-460.0,0.00021917,2]
[372281904,1752573065732,-460.0,0.00021917,2]
[372281905,1752573065742,-460.0,0.00021917,2]
[372281906,1752573065752,-601.75,0.00021917,2]
[372281907,1752573065762,-744.58,0.00021917,2]
[372281908,1752573065772,-527.71,0.00021917,2]
[372281909,1752573065781,-460.0,0.00021917,2]
[372281910,1752573065792,-460.0,0.00021917,2]
[372281911,1752573065803,-573.91,0.00021917,2]
[372281912,1752573065815,-460.0,0.00021917,2]
[372281913,1752573065824,-150.00211973,0.00021917,2]
[372281914,1752573065834,-460.0,0.00021917,2]
[372281915,1752573065845,-848.99,0.00021917,2]
[372281916,1752573065854,-599.45,0.00021917,2]
[372281917,1752573065864,-151.0,0.00021917,2]
[372281918,1752573065874,-260.94696276,0.00021917,2]
[372281919,1752573065886,-460.0,0.00021917,2]
[372281920,1752573065896,-956.77,0.00021917,2]
[372281921,1752573065906,-964.5,0.00021917,2]
[372281922,1752573065916,-466.4211985,0.00021917,2]
[372281923,1752573065925,-460.0,0.00021917,2]
[372281924,1752573065935,-460.0,0.00021917,2]
[372281925,1752573065945,-886.03,0.00021917,2]
[372281926,1752573065955,-460.0,0.00021917,2]
[372281927,1752573065964,-460.0,0.00021917,2]
[372281928,1752573065974,-475.11,0.00021917,2]
[372281929,1752573065984,-521.09,0.00021917,2]